[Event "Polish University-ch Women 2024"]
[Site "Lublin"]
[Date "2024.02.23"]
[Round "3.10"]
[White "Giefert, Sara"]
[Black "Czarniecka, Aleksandra"]
[Result "0-1"]
[ECO "D00"]
[WhiteElo "1704"]
[BlackElo "1961"]
[Annotator "NA RC"]
[PlyCount "137"]
[EventDate "2024.02.22"]
[EventType "swiss"]
[EventCountry "POL"]
[SourceTitle "playchess.com"]
[Source "ChessBase"]
[SourceQuality "1"]
[TimeControl "600+3"]

1. d4 {[%emt 0:00:02]} d5 {[%emt 0:00:01]} 2. Bg5 {[%emt 0:00:01]} g6 {[%emt 0:00:02]} 3. e3 {[%emt 0:00:02]} Bg7 {[%emt 0:00:01]} 4. Bd3 {[%emt 0:00:01]} Nf6 {[%emt 0:00:11]} 5. Nd2 {[%emt 0:00:09]} O-O {[%emt 0:00:15]} 6. f4 {[%emt 0:00:09]} c5 {[%emt 0:00:13]} 7. c3 {[%emt 0:00:02]} cxd4 {[%emt 0:00:14]} 8. exd4 {[%emt 0:00:02]} h6 {[%emt 0:00:53]} 9. Bh4 {[%emt 0:00:08]} Qd6 {[%emt 0:01:10]} 10. Bg3 {[%emt 0:00:21]} Nh5 {[%emt 0:00:05]} 11. Qf3 {[%emt 0:00:24]} Nxg3 {[%emt 0:00:15]} 12. hxg3 {[%emt 0:00:13]} Qe6+ {[%emt 0:00:12]} 13. Qe2 {[%emt 0:00:43]} Qxe2+ {[%emt 0:00:26]} 14. Kxe2 {[%emt 0:00:02]} Bg4+ {[%emt 0:00:03]} 15. Kf2 {[%emt 0:00:03]} Nd7 {[%emt 0:00:08]} 16. Ngf3 {[%emt 0:00:15]} h5 {[%emt 0:01:27]} 17. Rae1 {[%emt 0:00:24]} e6 {[%emt 0:00:15]} 18. Nh2 {[%emt 0:00:31]} Nf6 {[%emt 0:00:17]} 19. Ndf3 {[%emt 0:00:50]} Bxf3 {[%emt 0:00:02]} 20. gxf3 {[%emt 0:00:09]} Rfc8 {[%emt 0:00:12]} 21. g4 {[%emt 0:00:31]} Rab8 {[%emt 0:00:42]} 22. f5 {[%emt 0:00:33]} exf5 {[%emt 0:00:01]} 23. gxf5 {[%emt 0:00:03]} g5 {[%emt 0:00:13]} 24. Nf1 {[%emt 0:00:48]} Re8 {[%emt 0:00:32]} 25. Ne3 {[%emt 0:01:48]} Bh6 {[%emt 0:00:02]} 26. Nc2 {[%emt 0:00:27]} Kg7 {[%emt 0:00:36]} 27. Re5 {[%emt 0:00:19]} g4 {[%emt 0:00:29]} 28. Bb5 {[%emt 0:00:23]} Rh8 {[%emt 0:00:34]} 29. Re7 {[%emt 0:00:13]} Bf4 {[%emt 0:00:42]} 30. fxg4 {[%emt 0:00:49]} hxg4 {[%emt 0:00:01]} 31. Ree1 {[%emt 0:00:07]} Ne4+ {[%emt 0:00:10]} 32. Kg2 {[%emt 0:00:02]} Kf6 {[%emt 0:00:03]} 33. Nb4 {[%emt 0:00:25]} Kxf5 {[%emt 0:00:35]} 34. Nxd5 {[%emt 0:00:04]} Nd2 {[%emt 0:00:11]} 35. Bd7+ {[%emt 0:00:06]} Kg5 {[%emt 0:00:02]} 36. Rxh8 {[%emt 0:00:30]} Rxh8 37. Rh1 {[%emt 0:00:01]} Rxh1 38. Kxh1 {[%emt 0:00:01]} Bd6 {[%emt 0:00:16]} 39. Bc8 {[%emt 0:00:03]} b6 {[%emt 0:00:03]} 40. Kg2 {[%emt 0:00:01]} Nf3 {[%emt 0:00:07]} 41. Kf2 {[%emt 0:00:09]} Nh4 {[%emt 0:00:03]} 42. Ne3 {[%emt 0:00:05]} g3+ {[%emt 0:00:02]} 43. Kf1 {[%emt 0:00:06]} Nf3 {[%emt 0:00:05]} 44. Ng2 {[%emt 0:00:06]} Nd2+ {[%emt 0:00:06]} 45. Ke2 {[%emt 0:00:07]} Nc4 {[%emt 0:00:02]} 46. b3 {[%emt 0:00:00]} Na5 {[%emt 0:00:05]} 47. Kf3 {[%emt 0:00:00]} f5 {[%emt 0:00:05]} 48. Be6 {[%emt 0:00:01]} f4 {[%emt 0:00:03]} 49. Bd5 {[%emt 0:00:02]} b5 {[%emt 0:00:10]} 50. b4 {[%emt 0:00:02]} Nc4 {[%emt 0:00:00]} 51. Bxc4 {[%emt 0:00:03]} bxc4 {[%emt 0:00:01]} 52. a4 {[%emt 0:00:02]} Kf6 {[%emt 0:00:04]} 53. Nh4 {[%emt 0:00:06]} Ke7 {[%emt 0:00:03]} 54. a5 {[%emt 0:00:05]} Kd7 {[%emt 0:00:01]} 55. Nf5 {[%emt 0:00:04]} Bc7 {[%emt 0:00:03]} 56. Ng7 {[%emt 0:00:02]} Kc6 {[%emt 0:00:02]} 57. Ne8 {[%emt 0:00:03]} Bb8 {[%emt 0:00:02]} 58. Nf6 {[%emt 0:00:01]} a6 {[%emt 0:00:12]} 59. Ne4 {[%emt 0:00:02]} Kd5 {[%emt 0:00:04]} 60. Nc5 {[%emt 0:00:01]} g2 {[%emt 0:00:05]} 61. Kxg2 {[%emt 0:00:02]} Kc6 {[%emt 0:00:02]} 62. Kf3 {[%emt 0:00:01]} Kb5 {[%emt 0:00:01]} 63. Nd7 {[%emt 0:00:02]} Bc7 {[%emt 0:00:02]} 64. Ne5 {[%emt 0:00:03]} Ka4 {[%emt 0:00:02]} 65. Nxc4 {[%emt 0:00:02]} Kb3 {[%emt 0:00:01]} 66. Ne5 {[%emt 0:00:03]} Kxc3 {[%emt 0:00:02]} 67. Ke4 {[%emt 0:00:02]} Kxb4 {[%emt 0:00:03]} 68. Nd3+ {[%emt 0:00:13]} Kxa5 {[%emt 0:00:02]} 69. Ne5 {[%emt 0:00:10]} 0-1

[Event "Polish University-ch Women 2024"]
[Site "Lublin"]
[Date "2024.02.23"]
[Round "4.1"]
[White "Czarniecka, Aleksandra"]
[Black "Sliwicka, Alicja"]
[Result "0-1"]
[ECO "B67"]
[WhiteElo "1961"]
[BlackElo "2309"]
[Annotator "RC"]
[PlyCount "168"]
[EventDate "2024.02.22"]
[EventType "swiss"]
[EventCountry "POL"]
[SourceTitle "playchess.com"]
[Source "ChessBase"]
[SourceQuality "1"]
[TimeControl "600+3"]

1. e4 {[%emt 0:10:06]} c5 {[%emt 0:00:01]} 2. Nf3 {[%emt 0:00:00]} d6 {[%emt 0:00:02]} 3. d4 {[%emt 0:00:00]} cxd4 {[%emt 0:00:01]} 4. Nxd4 {[%emt 0:00:00]} Nf6 {[%emt 0:00:01]} 5. Nc3 {[%emt 0:00:00]} Bd7 {[%emt 0:00:02]} 6. Bg5 {[%emt 0:00:00]} e6 {[%emt 0:00:02]} 7. Qd2 {[%emt 0:00:00]} a6 {[%emt 0:00:02]} 8. f4 {[%emt 0:00:00]} h6 {[%emt 0:00:15]} 9. Bxf6 {[%emt 0:00:00]} Qxf6 {[%emt 0:00:04]} 10. O-O-O {[%emt 0:00:00]} Nc6 {[%emt 0:00:15]} 11. Nf3 {[%emt 0:00:00]} Qd8 {[%emt 0:00:08]} 12. Bd3 {[%emt 0:00:00]} Qc7 {[%emt 0:00:08]} 13. f5 {[%emt 0:00:00]} O-O-O {[%emt 0:00:16]} 14. Kb1 {[%emt 0:00:00]} Be7 {[%emt 0:00:07]} 15. Qf2 {[%emt 0:00:00]} Qa5 {[%emt 0:00:57]} 16. Nd2 {[%emt 0:00:00]} Qc5 {[%emt 0:01:00]} 17. Qxc5 {[%emt 0:00:00]} dxc5 {[%emt 0:00:02]} 18. Nc4 {[%emt 0:00:00]} Kc7 {[%emt 0:00:08]} 19. Rhf1 {[%emt 0:00:00]} b5 {[%emt 0:00:30]} 20. Ne3 {[%emt 0:00:00]} Bf6 {[%emt 0:00:12]} 21. fxe6 {[%emt 0:00:00]} fxe6 {[%emt 0:00:02]} 22. Ng4 {[%emt 0:00:00]} Bxc3 {[%emt 0:00:37]} 23. bxc3 {[%emt 0:00:00]} h5 {[%emt 0:00:02]} 24. Ne3 {[%emt 0:00:00]} Ne5 {[%emt 0:00:03]} 25. Be2 {[%emt 0:00:00]} Bc6 {[%emt 0:00:34]} 26. Rxd8 {[%emt 0:00:00]} Kxd8 {[%emt 0:00:07]} 27. Bf3 {[%emt 0:00:00]} Ke7 {[%emt 0:00:13]} 28. Nd1 {[%emt 0:00:00]} Rf8 {[%emt 0:00:06]} 29. Rf2 {[%emt 0:00:00]} g6 {[%emt 0:00:10]} 30. Kc1 {[%emt 0:00:00]} Nc4 {[%emt 0:00:13]} 31. Re2 {[%emt 0:00:00]} Rf4 {[%emt 0:01:32]} 32. Nb2 {[%emt 0:00:00]} Nxb2 {[%emt 0:00:10]} 33. Kxb2 {[%emt 0:00:00]} Rf8 {[%emt 0:00:54]} 34. Rd2 {[%emt 0:00:00]} Rc8 {[%emt 0:00:25]} 35. a3 {[%emt 0:00:00]} Kf6 {[%emt 0:00:10]} 36. Kb3 {[%emt 0:00:19]} Ke5 {[%emt 0:00:07]} 37. c4 {[%emt 0:00:02]} Rb8 {[%emt 0:01:11]} 38. cxb5 {[%emt 0:00:09]} Rxb5+ {[%emt 0:01:08]} 39. Kc4 {[%emt 0:00:11]} Ra5 {[%emt 0:00:00]} 40. h3 {[%emt 0:00:28]} Ba4 {[%emt 0:00:00]} 41. Kc3 {[%emt 0:00:12]} Bb5 {[%emt 0:00:00]} 42. Kb2 {[%emt 0:00:04]} Ra4 {[%emt 0:00:03]} 43. Rd8 {[%emt 0:00:13]} Rd4 {[%emt 0:00:04]} 44. Rc8 {[%emt 0:00:05]} Kd6 {[%emt 0:00:06]} 45. Rd8+ {[%emt 0:00:02]} Ke7 {[%emt 0:00:02]} 46. Rg8 {[%emt 0:00:11]} Kf6 {[%emt 0:00:02]} 47. Rf8+ {[%emt 0:00:02]} Kg7 {[%emt 0:00:01]} 48. Rc8 {[%emt 0:00:04]} c4 {[%emt 0:00:04]} 49. Rc7+ {[%emt 0:00:03]} Kf6 {[%emt 0:00:02]} 50. Kc3 {[%emt 0:00:05]} Rd6 {[%emt 0:00:04]} 51. Rc8 {[%emt 0:00:04]} Ke5 {[%emt 0:00:04]} 52. Rg8 {[%emt 0:00:03]} Kf6 {[%emt 0:00:01]} 53. Rf8+ {[%emt 0:00:01]} Ke7 {[%emt 0:00:01]} 54. Rg8 {[%emt 0:00:01]} Kf7 {[%emt 0:00:01]} 55. Rc8 {[%emt 0:00:03]} Rd7 {[%emt 0:00:03]} 56. Rh8 {[%emt 0:00:06]} Kf6 {[%emt 0:00:02]} 57. Rf8+ {[%emt 0:00:02]} Kg5 {[%emt 0:00:04]} 58. Rc8 {[%emt 0:00:10]} Kf4 {[%emt 0:00:03]} 59. a4 {[%emt 0:00:04]} Bxa4 {[%emt 0:00:03]} 60. Rxc4 {[%emt 0:00:01]} Bb5 {[%emt 0:00:01]} 61. Rc8 {[%emt 0:00:03]} Ke3 {[%emt 0:00:09]} 62. Kb3 {[%emt 0:00:02]} Rb7 {[%emt 0:00:02]} 63. Kc3 {[%emt 0:00:04]} a5 {[%emt 0:00:02]} 64. Ra8 {[%emt 0:00:05]} a4 {[%emt 0:00:03]} 65. e5 {[%emt 0:00:04]} Rc7+ {[%emt 0:00:02]} 66. Kb4 {[%emt 0:00:02]} Bd7 {[%emt 0:00:03]} 67. c4 {[%emt 0:00:01]} Kd4 {[%emt 0:00:03]} 68. Be2 {[%emt 0:00:05]} Kxe5 {[%emt 0:00:01]} 69. c5 {[%emt 0:00:02]} Kd4 {[%emt 0:00:03]} 70. Ra5 {[%emt 0:00:05]} Bc6 {[%emt 0:00:03]} 71. Bf3 {[%emt 0:00:03]} Rb7+ {[%emt 0:00:03]} 72. Ka3 {[%emt 0:00:03]} Rc7 {[%emt 0:00:04]} 73. Bxc6 {[%emt 0:00:03]} Rxc6 {[%emt 0:00:01]} 74. Rxa4+ {[%emt 0:00:03]} Kxc5 {[%emt 0:00:02]} 75. Kb3 {[%emt 0:00:04]} Kd5 {[%emt 0:00:01]} 76. Ra8 {[%emt 0:00:02]} e5 {[%emt 0:00:02]} 77. Rd8+ {[%emt 0:00:02]} Ke4 {[%emt 0:00:01]} 78. Re8 {[%emt 0:00:04]} Kf4 {[%emt 0:00:02]} 79. Rf8+ {[%emt 0:00:02]} Ke3 {[%emt 0:00:01]} 80. Re8 {[%emt 0:00:05]} e4 {[%emt 0:00:01]} 81. Kb2 {[%emt 0:00:03]} Kd3 {[%emt 0:00:01]} 82. Rd8+ {[%emt 0:00:05]} Ke2 {[%emt 0:00:02]} 83. Ra8 {[%emt 0:00:04]} e3 {[%emt 0:00:01]} 84. Ra1 {[%emt 0:00:02]} Kf2 {[%emt 0:00:03]} 0-1

[Event "Polish University-ch Women 2024"]
[Site "Lublin"]
[Date "2024.02.23"]
[Round "4.2"]
[White "Antolak, Julia"]
[Black "Kroliczek, Gabriela"]
[Result "1/2-1/2"]
[ECO "D89"]
[WhiteElo "2309"]
[BlackElo "1928"]
[Annotator "TA"]
[PlyCount "50"]
[EventDate "2024.02.22"]
[EventType "swiss"]
[EventCountry "POL"]
[SourceTitle "playchess.com"]
[Source "ChessBase"]
[SourceQuality "1"]
[TimeControl "600+3"]

{[%evp 28,50,-17,-67,-54,-131,-143,-175,-164,-172,-160,-163,-160,-168,-164,-198,-202,-222,-151,-149,-149,-139,-150,-157,-114]} 1. d4 {[%emt 0:00:03]} Nf6 {[%emt 0:00:03]} 2. c4 {[%emt 0:00:01]} g6 {[%emt 0:00:05]} 3. Nc3 {[%emt 0:00:01]} d5 {[%emt 0:00:01]} 4. cxd5 {[%emt 0:00:03]} Nxd5 {[%emt 0:00:01]} 5. e4 {[%emt 0:00:06]} Nxc3 {[%emt 0:00:02]} 6. bxc3 {[%emt 0:00:01]} Bg7 {[%emt 0:00:01]} 7. Bc4 {[%emt 0:00:05]} c5 {[%emt 0:00:06]} 8. Ne2 {[%emt 0:00:02]} Nc6 {[%emt 0:00:01]} 9. Be3 {[%emt 0:00:15]} O-O {[%emt 0:00:02]} 10. O-O {[%emt 0:00:02]} Bg4 {[%emt 0:00:02]} 11. f3 {[%emt 0:00:02]} Na5 {[%emt 0:00:01]} 12. Bd3 {[%emt 0:00:12]} cxd4 {[%emt 0:00:03]} 13. cxd4 {[%emt 0:00:02]} Be6 {[%emt 0:00:02]} 14. Qa4 {[%emt 0:00:39]} a6 {[%emt 0:00:45]} 15. Rac1 {[%emt 0:01:37]} ({White should play} 15. Rfb1 $11) 15... b5 $15 {[%emt 0:01:18]} 16. Qb4 {[%emt 0:00:06]} ({Better is} 16. Qc2 $15) 16... Bxa2 $17 {[%emt 0:00:55] Black is clearly better.} 17. d5 {[%emt 0:04:30]} Bc4 {[%emt 0:00:27]} 18. Rfd1 {[%emt 0:00:07] [#]} Bxd3 $1 {[%emt 0:01:17]} 19. Rxd3 {[%emt 0:00:01]} Nc4 {[%emt 0:00:01]} 20. Bc5 {[%emt 0:00:01]} Re8 {[%emt 0:00:01]} 21. Nd4 {[%emt 0:00:05]} Rc8 {[%emt 0:01:01]} 22. Rdd1 {[%emt 0:01:13]} ({Don't blunder} 22. Nc6 $2 Rxc6 23. h3 Rc7 $19) 22... Bxd4+ {[%emt 0:04:01]} 23. Bxd4 {[%emt 0:00:01]} f6 {[%emt 0:00:01]} 24. Ra1 {[%emt 0:00:30]} Ra8 {[%emt 0:00:11]} 25. Qb3 {[%emt 0:00:49]} Qd6 {[%emt 0:00:06] Wards off f4.   Weighted Error Value: White=0.25 (precise) /Black=0.08 (flawless) .  Mistake:       	White=1     	---        Inaccurate:     	---       	Black=1      OK:         	White=2     	Black=6      Best:        	---       	Black=1} 1/2-1/2

[Event "Polish University-ch Women 2024"]
[Site "Lublin"]
[Date "2024.02.23"]
[Round "4.3"]
[White "Kulpa, Zuzanna"]
[Black "Czarnecka, Lidia"]
[Result "0-1"]
[ECO "D52"]
[WhiteElo "1924"]
[BlackElo "2034"]
[Annotator "NA RC"]
[PlyCount "96"]
[EventDate "2024.02.22"]
[EventType "swiss"]
[EventCountry "POL"]
[SourceTitle "playchess.com"]
[Source "ChessBase"]
[SourceQuality "1"]
[TimeControl "600+3"]

1. d4 {[%emt 0:00:01]} d5 {[%emt 0:00:01]} 2. c4 {[%emt 0:00:01]} c6 {[%emt 0:00:01]} 3. Nf3 {[%emt 0:00:02]} Nf6 {[%emt 0:00:01]} 4. Nc3 {[%emt 0:00:02]} e6 {[%emt 0:00:01]} 5. Bg5 {[%emt 0:00:02]} Nbd7 {[%emt 0:00:01]} 6. e3 {[%emt 0:00:03]} Qa5 {[%emt 0:00:01]} 7. Nd2 {[%emt 0:00:08]} dxc4 {[%emt 0:00:10]} 8. Bf4 {[%emt 0:01:02]} Bb4 {[%emt 0:01:20]} 9. Qc1 {[%emt 0:01:11]} b5 {[%emt 0:02:01]} 10. a4 {[%emt 0:01:04]} Qb6 {[%emt 0:00:09]} 11. Be2 {[%emt 0:00:47]} O-O {[%emt 0:00:32]} 12. O-O {[%emt 0:03:27]} Bb7 {[%emt 0:00:14]} 13. Na2 {[%emt 0:00:33]} Be7 {[%emt 0:00:11]} 14. Nc3 {[%emt 0:00:22]} a6 {[%emt 0:00:09]} 15. Qc2 {[%emt 0:00:15]} Rac8 {[%emt 0:00:03]} 16. Nde4 {[%emt 0:00:19]} c5 {[%emt 0:00:31]} 17. a5 {[%emt 0:00:17]} Qa7 {[%emt 0:00:50]} 18. Nd6 {[%emt 0:00:19]} Bxd6 {[%emt 0:00:05]} 19. Bxd6 {[%emt 0:00:02]} Rfe8 {[%emt 0:00:00]} 20. Rfd1 {[%emt 0:00:49]} cxd4 {[%emt 0:00:02]} 21. exd4 {[%emt 0:00:01]} Qa8 {[%emt 0:04:43]} 22. f3 Nf8 {[%emt 0:00:00]} 23. Be5 {[%emt 0:00:08]} N8d7 {[%emt 0:00:00]} 24. Bd6 {[%emt 0:00:02]} Qa7 {[%emt 0:00:00]} 25. Bf1 {[%emt 0:00:02]} e5 {[%emt 0:00:00]} 26. Ne2 {[%emt 0:00:01]} exd4 {[%emt 0:00:00]} 27. Nxd4 {[%emt 0:00:02]} Nc5 {[%emt 0:00:00]} 28. Kh1 {[%emt 0:00:01]} Nd5 {[%emt 0:00:00]} 29. Nf5 {[%emt 0:00:07]} Nb3 {[%emt 0:00:00]} 30. Rab1 {[%emt 0:00:02]} Bc6 {[%emt 0:00:00]} 31. Bg3 {[%emt 0:00:09]} Ne3 {[%emt 0:00:00]} 32. Nxe3 {[%emt 0:00:02]} Qxe3 {[%emt 0:00:00]} 33. Bf2 {[%emt 0:00:02]} Qf4 {[%emt 0:00:00]} 34. Bg3 {[%emt 0:00:02]} Qg5 {[%emt 0:00:00]} 35. Re1 {[%emt 0:00:02]} Nxa5 {[%emt 0:00:00]} 36. Rxe8+ {[%emt 0:00:11]} Rxe8 {[%emt 0:00:00]} 37. Ra1 {[%emt 0:00:00]} Nb3 {[%emt 0:00:00]} 38. Rxa6 {[%emt 0:00:01]} Qc5 {[%emt 0:00:02]} 39. Bf2 {[%emt 0:00:07]} Qd5 {[%emt 0:00:00]} 40. Ra7 {[%emt 0:00:07]} h6 {[%emt 0:00:08]} 41. h3 {[%emt 0:00:01]} Qe5 {[%emt 0:00:13]} 42. Ra6 {[%emt 0:00:03]} Qd5 {[%emt 0:00:02]} 43. Ra7 {[%emt 0:00:01]} Nd2 {[%emt 0:00:09]} 44. Kg1 {[%emt 0:00:02]} Nxf3+ {[%emt 0:00:10]} 45. gxf3 {[%emt 0:00:11]} Qxf3 {[%emt 0:00:01]} 46. Bc5 {[%emt 0:00:02]} Qh1+ {[%emt 0:00:02]} 47. Kf2 {[%emt 0:00:00]} Qh2+ {[%emt 0:00:00]} 48. Bg2 {[%emt 0:00:03]} Qxg2# {[%emt 0:00:01]} 0-1

[Event "Polish University-ch Women 2024"]
[Site "Lublin"]
[Date "2024.02.23"]
[Round "4.4"]
[White "Wikar, Martyna"]
[Black "Michalska, Aleksandra"]
[Result "1-0"]
[ECO "B06"]
[WhiteElo "2214"]
[BlackElo "1812"]
[Annotator "RC"]
[PlyCount "45"]
[EventDate "2024.02.22"]
[EventType "swiss"]
[EventCountry "POL"]
[SourceTitle "playchess.com"]
[Source "ChessBase"]
[SourceQuality "1"]
[TimeControl "600+3"]

1. e4 {[%emt 0:00:01]} g6 {[%emt 0:00:01]} 2. d4 {[%emt 0:00:04]} Bg7 {[%emt 0:00:01]} 3. Nc3 {[%emt 0:00:01]} b6 {[%emt 0:00:02]} 4. f4 {[%emt 0:00:02]} Bb7 {[%emt 0:00:02]} 5. Nf3 {[%emt 0:00:01]} e6 {[%emt 0:00:01]} 6. Bd3 {[%emt 0:00:04]} Ne7 {[%emt 0:00:02]} 7. O-O {[%emt 0:00:02]} d6 {[%emt 0:00:04]} 8. Qe1 {[%emt 0:00:20]} Nd7 {[%emt 0:00:14]} 9. f5 {[%emt 0:00:12]} exf5 {[%emt 0:00:48]} 10. Bg5 {[%emt 0:01:32]} f6 {[%emt 0:01:40]} 11. Bd2 {[%emt 0:04:02]} fxe4 {[%emt 0:01:20]} 12. Bxe4 {[%emt 0:00:02]} Bxe4 {[%emt 0:00:12]} 13. Qxe4 {[%emt 0:00:02]} O-O {[%emt 0:00:26]} 14. Rae1 {[%emt 0:00:09]} Rf7 {[%emt 0:00:59]} 15. Ng5 {[%emt 0:00:39]} fxg5 {[%emt 0:01:48]} 16. Rxf7 {[%emt 0:00:03]} Nf5 {[%emt 0:01:13]} 17. Rxd7 {[%emt 0:00:26]} Bxd4+ {[%emt 0:00:21]} 18. Kh1 {[%emt 0:00:02]} Qxd7 {[%emt 0:00:03]} 19. Qxa8+ {[%emt 0:00:03]} Kg7 {[%emt 0:00:03]} 20. Qe8 {[%emt 0:00:56]} Ng3+ {[%emt 0:00:46]} 21. hxg3 {[%emt 0:00:02]} Qg4 {[%emt 0:00:01]} 22. Re7+ {[%emt 0:00:06]} Kh6 {[%emt 0:00:02]} 23. Qf8+ {[%emt 0:00:02]} 1-0

[Event "Polish University-ch Women 2024"]
[Site "Lublin"]
[Date "2024.02.23"]
[Round "4.5"]
[White "Shaban, Aliaksandra"]
[Black "Jarocka, Liwia"]
[Result "0-1"]
[ECO "D04"]
[WhiteElo "1708"]
[BlackElo "2199"]
[Annotator "RC"]
[PlyCount "74"]
[EventDate "2024.02.22"]
[EventType "swiss"]
[EventCountry "POL"]
[SourceTitle "playchess.com"]
[Source "ChessBase"]
[SourceQuality "1"]
[TimeControl "600+3"]

1. d4 {[%emt 0:00:03]} d5 {[%emt 0:00:05]} 2. Nf3 {[%emt 0:00:01]} Nf6 {[%emt 0:00:01]} 3. e3 {[%emt 0:00:01]} c6 {[%emt 0:00:09]} 4. Bd3 {[%emt 0:00:03]} Bg4 {[%emt 0:00:08]} 5. O-O {[%emt 0:00:04]} Nbd7 {[%emt 0:00:04]} 6. Nbd2 {[%emt 0:00:01]} e5 {[%emt 0:00:14]} 7. dxe5 {[%emt 0:00:02]} Nxe5 {[%emt 0:00:02]} 8. Be2 {[%emt 0:00:02]} Ng6 {[%emt 0:00:16]} 9. h3 {[%emt 0:00:04]} Bc8 {[%emt 0:00:06]} 10. b3 {[%emt 0:00:02]} Be7 {[%emt 0:00:04]} 11. Bb2 {[%emt 0:00:01]} O-O {[%emt 0:00:03]} 12. c4 {[%emt 0:00:03]} b6 {[%emt 0:00:36]} 13. Rc1 {[%emt 0:00:09]} Bb7 {[%emt 0:00:13]} 14. Qc2 {[%emt 0:00:19]} c5 {[%emt 0:00:15]} 15. Rfd1 {[%emt 0:00:04]} Qc7 {[%emt 0:00:22]} 16. cxd5 {[%emt 0:00:05]} Nxd5 {[%emt 0:00:01]} 17. a3 {[%emt 0:00:07]} Rac8 {[%emt 0:01:03]} 18. Nc4 {[%emt 0:00:31]} Rfd8 {[%emt 0:00:25]} 19. Bd3 {[%emt 0:00:34]} Bf6 {[%emt 0:00:12]} 20. Bf5 {[%emt 0:00:49]} Ra8 {[%emt 0:00:02]} 21. Be4 {[%emt 0:01:12]} Bxb2 {[%emt 0:01:09]} 22. Nxb2 {[%emt 0:00:16]} Qe7 {[%emt 0:00:01]} 23. Bf5 {[%emt 0:00:22]} Nxe3 {[%emt 0:01:04]} 24. fxe3 {[%emt 0:00:13]} Bxf3 {[%emt 0:00:02]} 25. gxf3 {[%emt 0:00:31]} Qxe3+ {[%emt 0:00:02]} 26. Qf2 {[%emt 0:01:20]} Qg5+ {[%emt 0:00:03]} 27. Bg4 {[%emt 0:00:03]} h5 {[%emt 0:00:08]} 28. Nc4 {[%emt 0:01:27]} hxg4 {[%emt 0:00:08]} 29. fxg4 {[%emt 0:00:04]} Nf4 {[%emt 0:00:54]} 30. Qf3 {[%emt 0:00:21]} Qh6 {[%emt 0:00:35]} 31. Kh2 {[%emt 0:00:09]} Ne6 {[%emt 0:00:07]} 32. Rf1 {[%emt 0:00:43]} Ng5 {[%emt 0:00:26]} 33. Qe3 {[%emt 0:00:25]} Re8 {[%emt 0:00:04]} 34. Qd3 {[%emt 0:00:24]} Rad8 {[%emt 0:00:03]} 35. Qg3 {[%emt 0:00:13]} Re2+ {[%emt 0:00:05]} 36. Rf2 {[%emt 0:00:10]} Rxf2+ {[%emt 0:00:03]} 37. Qxf2 {[%emt 0:00:02]} Qxh3+ {[%emt 0:00:04]} 0-1

[Event "Polish University-ch Women 2024"]
[Site "Lublin"]
[Date "2024.02.23"]
[Round "4.6"]
[White "Harazinska, Magdalena"]
[Black "Borkowska, Zuzanna"]
[Result "1-0"]
[ECO "D30"]
[WhiteElo "1950"]
[BlackElo "1559"]
[Annotator "NA RC"]
[PlyCount "67"]
[EventDate "2024.02.22"]
[EventType "swiss"]
[EventCountry "POL"]
[SourceTitle "playchess.com"]
[Source "ChessBase"]
[SourceQuality "1"]
[TimeControl "600+3"]

1. d4 {[%emt 0:00:02]} d5 {[%emt 0:00:01]} 2. c4 {[%emt 0:00:01]} e6 {[%emt 0:00:03]} 3. Nc3 {[%emt 0:00:01]} c5 {[%emt 0:00:08]} 4. cxd5 {[%emt 0:00:18]} exd5 {[%emt 0:00:02]} 5. Nf3 {[%emt 0:00:17]} Nc6 {[%emt 0:00:01]} 6. g3 {[%emt 0:00:19]} Nf6 {[%emt 0:01:18]} 7. Bg2 {[%emt 0:00:02]} Be7 {[%emt 0:00:06]} 8. O-O {[%emt 0:00:11]} O-O {[%emt 0:00:01]} 9. b3 {[%emt 0:00:18]} Bf5 {[%emt 0:00:18]} 10. Bb2 {[%emt 0:00:21]} h6 {[%emt 0:00:47]} 11. Rc1 {[%emt 0:01:17]} Re8 {[%emt 0:00:16]} 12. Na4 {[%emt 0:00:21]} cxd4 {[%emt 0:00:24]} 13. Nxd4 {[%emt 0:00:02]} Nxd4 {[%emt 0:00:22]} 14. Qxd4 {[%emt 0:00:36]} b6 {[%emt 0:02:09]} 15. Rfd1 {[%emt 0:01:15]} Be4 {[%emt 0:00:14]} 16. f3 {[%emt 0:01:39]} Bf5 {[%emt 0:00:02]} 17. Kh1 {[%emt 0:00:11]} Rc8 {[%emt 0:00:52]} 18. Rxc8 {[%emt 0:00:22]} Qxc8 {[%emt 0:00:01]} 19. e4 {[%emt 0:00:04]} dxe4 {[%emt 0:00:06]} 20. fxe4 {[%emt 0:00:02]} Bg4 {[%emt 0:00:16]} 21. Rc1 {[%emt 0:00:07]} Qd7 {[%emt 0:00:20]} 22. e5 {[%emt 0:00:25]} Qxd4 {[%emt 0:00:19]} 23. Bxd4 {[%emt 0:00:01]} Nh7 {[%emt 0:00:11]} 24. h3 {[%emt 0:00:18]} Be6 {[%emt 0:00:14]} 25. Rc7 {[%emt 0:00:24]} b5 {[%emt 0:01:26]} 26. Nc5 {[%emt 0:00:33]} Bxc5 {[%emt 0:00:06]} 27. Bxc5 {[%emt 0:00:02]} a6 {[%emt 0:00:08]} 28. Bb7 {[%emt 0:00:31]} Bxh3 {[%emt 0:00:03]} 29. Bxa6 {[%emt 0:00:03]} Ng5 {[%emt 0:00:15]} 30. Bd6 {[%emt 0:00:21]} Re6 {[%emt 0:00:52]} 31. Bxb5 {[%emt 0:00:09]} Nf3 {[%emt 0:00:01]} 32. Bd3 {[%emt 0:00:25]} g6 {[%emt 0:00:06]} 33. Bc4 {[%emt 0:00:44]} Re8 {[%emt 0:00:05]} 34. Bxf7+ {[%emt 0:00:00]} 1-0

[Event "Polish University-ch Women 2024"]
[Site "Lublin"]
[Date "2024.02.23"]
[Round "4.7"]
[White "Wloch, Dominika"]
[Black "Furtak, Joanna"]
[Result "0-1"]
[ECO "B24"]
[WhiteElo "1285"]
[BlackElo "1883"]
[Annotator "NA RC"]
[PlyCount "47"]
[EventDate "2024.02.22"]
[EventType "swiss"]
[EventCountry "POL"]
[SourceTitle "playchess.com"]
[Source "ChessBase"]
[SourceQuality "1"]
[TimeControl "600+3"]

1. e4 {[%emt 0:00:01]} c5 {[%emt 0:00:01]} 2. Nc3 {[%emt 0:00:02]} Nc6 {[%emt 0:00:02]} 3. g3 {[%emt 0:00:02]} g6 {[%emt 0:00:01]} 4. Bg2 {[%emt 0:00:01]} Bg7 {[%emt 0:00:02]} 5. f4 {[%emt 0:00:05]} d6 {[%emt 0:00:12]} 6. h3 {[%emt 0:00:05]} e6 {[%emt 0:00:20]} 7. Nf3 {[%emt 0:00:15]} Nge7 {[%emt 0:00:04]} 8. O-O {[%emt 0:00:07]} Rb8 {[%emt 0:00:29]} 9. a4 {[%emt 0:00:06]} a6 {[%emt 0:00:05]} 10. d3 {[%emt 0:00:15]} b5 {[%emt 0:00:18]} 11. axb5 {[%emt 0:00:45]} axb5 {[%emt 0:00:03]} 12. Ne2 {[%emt 0:00:44]} b4 {[%emt 0:00:43]} 13. c3 {[%emt 0:00:41]} O-O {[%emt 0:01:47]} 14. cxb4 {[%emt 0:01:05]} Nxb4 {[%emt 0:00:19]} 15. d4 {[%emt 0:00:46]} cxd4 {[%emt 0:01:03]} 16. Nexd4 {[%emt 0:00:41]} e5 {[%emt 0:00:35]} 17. Nc2 {[%emt 0:01:16]} Nxc2 {[%emt 0:03:07]} 18. Qxc2 {[%emt 0:00:02]} Qb6+ {[%emt 0:00:25]} 19. Kh1 {[%emt 0:00:13]} Ba6 {[%emt 0:00:25]} 20. Rf2 {[%emt 0:01:37]} Rfc8 {[%emt 0:00:21]} 21. Qd1 {[%emt 0:00:58]} Qxf2 {[%emt 0:00:12]} 22. Rxa6 {[%emt 0:00:08]} Rc2 {[%emt 0:00:14]} 23. Ne1 {[%emt 0:00:47]} Re2 {[%emt 0:00:03]} 24. Ra1 {[%emt 0:00:33]} 0-1